[Event "*** Titled Tuesday Blitz"]
[Site "Chess.com"]
[Date "2021.04.27"]
[Round "3"]
[White "Forantes"]
[Black "TimurGareyev"]
[Result "0-1"]
[WhiteElo "2498"]
[BlackElo "2734"]
[TimeControl "180+1"]
[EndTime "10:28:29 PDT"]
[Termination "TimurGareyev won on time"]

1. Nf3 {[%clk 0:03:00.9]} 1... d5 {[%clk 0:02:58.3]} 2. g3 {[%clk 0:03:00.8]}
2... c6 {[%clk 0:02:56.9]} 3. Bg2 {[%clk 0:03:01.3]} 3... Nf6 {[%clk 0:02:56.9]}
4. O-O {[%clk 0:03:01.6]} 4... Bg4 {[%clk 0:02:55]} 5. d4 {[%clk 0:03:02]} 5...
Nbd7 {[%clk 0:02:53.3]} 6. c4 {[%clk 0:03:02.2]} 6... e6 {[%clk 0:02:52.9]} 7.
Qb3 {[%clk 0:03:00.3]} 7... Qb6 {[%clk 0:02:51.1]} 8. c5 {[%clk 0:03:00.9]} 8...
Qa6 {[%clk 0:02:47]} 9. Nc3 {[%clk 0:03:00]} 9... b6 {[%clk 0:02:45.9]} 10. cxb6
{[%clk 0:02:58.8]} 10... axb6 {[%clk 0:02:46.8]} 11. Bf4 {[%clk 0:02:56.8]}
11... Be7 {[%clk 0:02:43.9]} 12. Rfe1 {[%clk 0:02:53.7]} 12... O-O {[%clk
0:02:41.4]} 13. Ne5 {[%clk 0:02:53.9]} 13... Nxe5 {[%clk 0:02:40.7]} 14. Bxe5
{[%clk 0:02:54]} 14... Nd7 {[%clk 0:02:39.9]} 15. Bf4 {[%clk 0:02:53.8]} 15...
c5 {[%clk 0:02:38.1]} 16. e3 {[%clk 0:02:25]} 16... Rfc8 {[%clk 0:02:33.8]} 17.
h3 {[%clk 0:01:48.7]} 17... Bh5 {[%clk 0:02:29.8]} 18. Nxd5 {[%clk 0:01:35.2]}
18... exd5 {[%clk 0:02:28.2]} 19. Qxd5 {[%clk 0:01:36.1]} 19... Nf6 {[%clk
0:02:28]} 20. Qe5 {[%clk 0:01:35.9]} 20... Re8 {[%clk 0:02:15]} 21. d5 {[%clk
0:01:16.9]} 21... Rad8 {[%clk 0:02:11.3]} 22. e4 {[%clk 0:00:45]} 22... Bg6
{[%clk 0:01:33.3]} 23. Qc7 {[%clk 0:00:27.3]} 23... Bf8 {[%clk 0:01:23.2]} 24.
Bg5 {[%clk 0:00:15.7]} 24... Bd6 {[%clk 0:01:11.2]} 25. Qc6 {[%clk 0:00:13.7]}
25... Be5 {[%clk 0:01:11.2]} 26. Bxf6 {[%clk 0:00:11.7]} 26... gxf6 {[%clk
0:01:02.3]} 27. f4 {[%clk 0:00:11.8]} 27... Bxb2 {[%clk 0:00:48.2]} 28. Rad1
{[%clk 0:00:12.1]} 28... Bd4+ {[%clk 0:00:41]} 29. Rxd4 {[%clk 0:00:09.8]} 29...
cxd4 {[%clk 0:00:39.6]} 30. f5 {[%clk 0:00:10.7]} 30... Qa5 {[%clk 0:00:34.5]}
31. Rf1 {[%clk 0:00:07.1]} 31... Qc5 {[%clk 0:00:34.4]} 32. Qxf6 {[%clk
0:00:06.9]} 32... d3+ {[%clk 0:00:31.1]} 33. Kh2 {[%clk 0:00:07.5]} 33... Qe7
{[%clk 0:00:28.1]} 34. Qd4 {[%clk 0:00:04.3]} 34... Bh5 {[%clk 0:00:25.3]} 35.
f6 {[%clk 0:00:03.4]} 35... Qe5 {[%clk 0:00:24.1]} 36. Qxd3 {[%clk 0:00:04.1]}
36... Bg6 {[%clk 0:00:22.5]} 37. Rf4 {[%clk 0:00:03.3]} 37... h5 {[%clk
0:00:21.2]} 38. Qd2 {[%clk 0:00:02.2]} 38... Rc8 {[%clk 0:00:21]} 39. Rf5 {[%clk
0:00:02.5]} 39... Bxf5 {[%clk 0:00:19.4]} 40. Qg5+ {[%clk 0:00:03.1]} 40... Bg6
{[%clk 0:00:19.1]} 41. Qh6 {[%clk 0:00:03.4]} 41... Qxf6 {[%clk 0:00:19.3]} 42.
e5 {[%clk 0:00:03.8]} 42... Qxe5 {[%clk 0:00:18.1]} 43. d6 {[%clk 0:00:04.4]}
43... Qxd6 {[%clk 0:00:17.6]} 0-1

[Event "*** Titled Tuesday Blitz"]
[Site "Chess.com"]
[Date "2021.04.27"]
[Round "3"]
[White "atwalcb"]
[Black "dusanacns"]
[Result "1-0"]
[WhiteElo "2456"]
[BlackElo "2686"]
[TimeControl "180+1"]
[EndTime "10:28:29 PDT"]
[Termination "atwalcb won on time"]

1. e4 {[%clk 0:02:58.1]} 1... d5 {[%clk 0:02:59.5]} 2. Nc3 {[%clk 0:02:57.4]}
2... d4 {[%clk 0:02:54.5]} 3. Nce2 {[%clk 0:02:57.2]} 3... e5 {[%clk 0:02:53.1]}
4. Ng3 {[%clk 0:02:58.1]} 4... Be6 {[%clk 0:02:53.1]} 5. Bb5+ {[%clk 0:02:53.1]}
5... c6 {[%clk 0:02:52.5]} 6. Ba4 {[%clk 0:02:53.6]} 6... d3 {[%clk 0:02:48]} 7.
Nf3 {[%clk 0:02:47.9]} 7... f6 {[%clk 0:02:44.6]} 8. O-O {[%clk 0:02:47]} 8...
Na6 {[%clk 0:02:43.2]} 9. Bb3 {[%clk 0:02:13.4]} 9... Bxb3 {[%clk 0:02:37.7]}
10. axb3 {[%clk 0:02:13.2]} 10... dxc2 {[%clk 0:02:28.2]} 11. Qxc2 {[%clk
0:02:11.2]} 11... Nb4 {[%clk 0:02:22.2]} 12. Qc4 {[%clk 0:02:03.5]} 12... Nd3
{[%clk 0:01:55.7]} 13. Ne1 {[%clk 0:01:49.4]} 13... Nxe1 {[%clk 0:01:31.6]} 14.
Rxe1 {[%clk 0:01:50.3]} 14... Qd7 {[%clk 0:01:25.9]} 15. d4 {[%clk 0:01:43.6]}
15... exd4 {[%clk 0:01:23.2]} 16. e5 {[%clk 0:01:39.2]} 16... Ne7 {[%clk
0:01:12.4]} 17. Bf4 {[%clk 0:01:31.3]} 17... Qd5 {[%clk 0:01:08.2]} 18. Qe2
{[%clk 0:01:25.1]} 18... f5 {[%clk 0:00:32.6]} 19. Bg5 {[%clk 0:01:18.8]} 19...
Qe6 {[%clk 0:00:26.2]} 20. Qd3 {[%clk 0:01:07.9]} 20... h6 {[%clk 0:00:22.1]}
21. Bxe7 {[%clk 0:01:06.6]} 21... Bxe7 {[%clk 0:00:23]} 22. Nxf5 {[%clk
0:01:07.1]} 22... O-O {[%clk 0:00:22.8]} 23. Nxd4 {[%clk 0:00:51.1]} 23... Qd5
{[%clk 0:00:21.7]} 24. Qc3 {[%clk 0:00:43.1]} 24... Bc5 {[%clk 0:00:19.6]} 25.
Nf3 {[%clk 0:00:41]} 25... Rad8 {[%clk 0:00:18.9]} 26. b4 {[%clk 0:00:40.8]}
26... Bb6 {[%clk 0:00:18]} 27. e6 {[%clk 0:00:40.3]} 27... Rfe8 {[%clk
0:00:16.6]} 28. Re5 {[%clk 0:00:38.1]} 28... Qd3 {[%clk 0:00:15.9]} 29. Rae1
{[%clk 0:00:37.1]} 29... Qg6 {[%clk 0:00:14.6]} 30. e7 {[%clk 0:00:34.1]} 30...
Rd3 {[%clk 0:00:14.5]} 31. Qc4+ {[%clk 0:00:33.7]} 31... Kh7 {[%clk 0:00:14.7]}
32. Re6 {[%clk 0:00:33.4]} 32... Qf5 {[%clk 0:00:12.2]} 33. R6e5 {[%clk
0:00:27.8]} 33... Qg6 {[%clk 0:00:10.2]} 34. Nh4 {[%clk 0:00:28.1]} 34... Qd6
{[%clk 0:00:03.7]} 35. h3 {[%clk 0:00:09.2]} 35... Rd4 {[%clk 0:00:03.1]} 36.
Qc2+ {[%clk 0:00:09.1]} 36... Kg8 {[%clk 0:00:03.7]} 37. Re6 {[%clk 0:00:09.4]}
37... Qd5 {[%clk 0:00:03.5]} 38. R6e5 {[%clk 0:00:09.5]} 38... Qd6 {[%clk
0:00:02.4]} 39. Nf5 {[%clk 0:00:09.8]} 39... Qf6 {[%clk 0:00:01.6]} 40. Nxd4
{[%clk 0:00:09.3]} 40... Bxd4 {[%clk 0:00:02.4]} 41. Qc4+ {[%clk 0:00:09.9]} 1-0

[Event "*** Titled Tuesday Blitz"]
[Site "Chess.com"]
[Date "2021.04.27"]
[Round "3"]
[White "kingofthenil"]
[Black "MITerryble"]
[Result "0-1"]
[WhiteElo "2644"]
[BlackElo "2888"]
[TimeControl "180+1"]
[EndTime "10:28:30 PDT"]
[Termination "MITerryble won by resignation"]

1. e4 {[%clk 0:02:24.6]} 1... e6 {[%clk 0:02:47.7]} 2. d4 {[%clk 0:02:22.7]}
2... d5 {[%clk 0:02:47.7]} 3. e5 {[%clk 0:02:19.2]} 3... c5 {[%clk 0:02:47]} 4.
c3 {[%clk 0:02:19.7]} 4... Qb6 {[%clk 0:02:46.9]} 5. Nf3 {[%clk 0:02:19.3]} 5...
Bd7 {[%clk 0:02:32.4]} 6. Be2 {[%clk 0:02:18.7]} 6... cxd4 {[%clk 0:02:31.3]} 7.
cxd4 {[%clk 0:02:17.4]} 7... Bb5 {[%clk 0:02:31.5]} 8. Nc3 {[%clk 0:02:17.7]}
8... Bxe2 {[%clk 0:02:30.8]} 9. Nxe2 {[%clk 0:02:18.6]} 9... Bb4+ {[%clk
0:02:29.7]} 10. Kf1 {[%clk 0:02:10.6]} 10... Nc6 {[%clk 0:02:29.1]} 11. g3
{[%clk 0:02:04.7]} 11... Be7 {[%clk 0:02:04.8]} 12. Kg2 {[%clk 0:02:02.4]} 12...
h5 {[%clk 0:02:04.8]} 13. h4 {[%clk 0:01:51.7]} 13... Nh6 {[%clk 0:02:01.4]} 14.
Bxh6 {[%clk 0:01:51.3]} 14... Rxh6 {[%clk 0:02:02.3]} 15. Qd2 {[%clk 0:01:48.2]}
15... Qb4 {[%clk 0:01:58.5]} 16. Nc3 {[%clk 0:01:45.3]} 16... Rc8 {[%clk
0:01:40.5]} 17. Rac1 {[%clk 0:01:43.8]} 17... Rh8 {[%clk 0:01:40.1]} 18. Rc2
{[%clk 0:01:41.4]} 18... Kd7 {[%clk 0:01:17.3]} 19. Rhc1 {[%clk 0:01:40.4]}
19... Rhf8 {[%clk 0:01:01.7]} 20. Qd3 {[%clk 0:01:32.6]} 20... g6 {[%clk
0:00:58.6]} 21. a3 {[%clk 0:01:26.3]} 21... Qb3 {[%clk 0:00:56.6]} 22. Nd2
{[%clk 0:00:54.4]} 22... Qb6 {[%clk 0:00:56.2]} 23. Na4 {[%clk 0:00:54.8]} 23...
Qxd4 {[%clk 0:00:30.6]} 24. Qb5 {[%clk 0:00:55]} 24... Rc7 {[%clk 0:00:28.3]}
25. Nb3 {[%clk 0:00:49.4]} 25... Qe4+ {[%clk 0:00:19.3]} 26. f3 {[%clk
0:00:26.8]} 26... Qxe5 {[%clk 0:00:19.4]} 27. Nbc5+ {[%clk 0:00:26.2]} 27...
Bxc5 {[%clk 0:00:19.9]} 28. Nxc5+ {[%clk 0:00:27.1]} 28... Ke7 {[%clk
0:00:20.4]} 29. Nxb7 {[%clk 0:00:27.2]} 29... Rb8 {[%clk 0:00:20.9]} 30. Qc5+
{[%clk 0:00:18.2]} 30... Kf6 {[%clk 0:00:12.5]} 31. Nd6 {[%clk 0:00:10.4]} 31...
Rd7 {[%clk 0:00:12.6]} 32. Nb5 {[%clk 0:00:05.5]} 32... Ne7 {[%clk 0:00:09.2]}
33. Nd4 {[%clk 0:00:04.5]} 33... Qd6 {[%clk 0:00:08.6]} 34. Qc3 {[%clk
0:00:04.4]} 34... e5 {[%clk 0:00:09]} 35. Ne2 {[%clk 0:00:03.2]} 35... d4 {[%clk
0:00:09.3]} 36. Qd3 {[%clk 0:00:03.7]} 36... Kg7 {[%clk 0:00:07.1]} 37. f4
{[%clk 0:00:02.7]} 37... Nd5 {[%clk 0:00:06.8]} 38. fxe5 {[%clk 0:00:02.9]}
38... Qxe5 {[%clk 0:00:07.7]} 39. Qxd4 {[%clk 0:00:02.5]} 39... Ne3+ {[%clk
0:00:07.1]} 40. Kf3 {[%clk 0:00:02.6]} 40... Rxd4 {[%clk 0:00:06.7]} 0-1

[Event "*** Titled Tuesday Blitz"]
[Site "Chess.com"]
[Date "2021.04.27"]
[Round "3"]
[White "Karttunen"]
[Black "andrewtnb"]
[Result "0-1"]
[WhiteElo "2504"]
[BlackElo "2248"]
[TimeControl "180+1"]
[EndTime "10:28:33 PDT"]
[Termination "andrewtnb won by resignation"]

1. d4 {[%clk 0:03:00.9]} 1... Nf6 {[%clk 0:02:57.6]} 2. c4 {[%clk 0:02:59.8]}
2... e6 {[%clk 0:02:57.6]} 3. Nc3 {[%clk 0:02:58.5]} 3... Bb4 {[%clk 0:02:54.9]}
4. e3 {[%clk 0:02:57.1]} 4... d5 {[%clk 0:02:53.9]} 5. Bd3 {[%clk 0:02:55.9]}
5... O-O {[%clk 0:02:51.5]} 6. Nf3 {[%clk 0:02:55]} 6... dxc4 {[%clk 0:02:49.8]}
7. Bxc4 {[%clk 0:02:53]} 7... a6 {[%clk 0:02:49.8]} 8. a3 {[%clk 0:02:36.1]}
8... Be7 {[%clk 0:02:42.1]} 9. Bd3 {[%clk 0:02:29.5]} 9... c5 {[%clk 0:02:40.4]}
10. Ne5 {[%clk 0:02:17]} 10... b5 {[%clk 0:02:16.7]} 11. Qf3 {[%clk 0:02:14.2]}
11... Ra7 {[%clk 0:02:16.8]} 12. O-O {[%clk 0:01:56.8]} 12... Rc7 {[%clk
0:02:01.3]} 13. Rd1 {[%clk 0:01:52.1]} 13... Bb7 {[%clk 0:02:00.6]} 14. Qh3
{[%clk 0:01:51]} 14... Nbd7 {[%clk 0:01:48.9]} 15. Bd2 {[%clk 0:01:27.2]} 15...
Nxe5 {[%clk 0:01:35.3]} 16. Bxh7+ {[%clk 0:01:20.3]} 16... Nxh7 {[%clk
0:01:30.4]} 17. dxe5 {[%clk 0:01:20.5]} 17... Qd3 {[%clk 0:01:08.4]} 18. Be1
{[%clk 0:01:16.9]} 18... Qg6 {[%clk 0:01:02.5]} 19. Ne2 {[%clk 0:01:15.8]} 19...
Ng5 {[%clk 0:01:00.4]} 20. Qg3 {[%clk 0:01:14]} 20... Qf5 {[%clk 0:00:45.8]} 21.
f4 {[%clk 0:01:09.8]} 21... Ne4 {[%clk 0:00:42.9]} 22. Qh3 {[%clk 0:00:57.9]}
22... Qxh3 {[%clk 0:00:40.9]} 23. gxh3 {[%clk 0:00:57.2]} 23... f6 {[%clk
0:00:36.9]} 24. Nc3 {[%clk 0:00:53.6]} 24... fxe5 {[%clk 0:00:34.9]} 25. Nxe4
{[%clk 0:00:51.5]} 25... Bxe4 {[%clk 0:00:35.8]} 26. Bg3 {[%clk 0:00:51.1]}
26... exf4 {[%clk 0:00:29.8]} 27. Bxf4 {[%clk 0:00:51.3]} 27... Rxf4 {[%clk
0:00:27.2]} 28. exf4 {[%clk 0:00:50.5]} 28... Bf6 {[%clk 0:00:24.2]} 29. Rd6
{[%clk 0:00:50.2]} 29... Bxb2 {[%clk 0:00:22.5]} 30. Re1 {[%clk 0:00:49.8]}
30... Bd4+ {[%clk 0:00:22.2]} 31. Rxd4 {[%clk 0:00:49.2]} 31... cxd4 {[%clk
0:00:22.2]} 32. Rxe4 {[%clk 0:00:49.8]} 32... Rd7 {[%clk 0:00:22.2]} 33. Rxe6
{[%clk 0:00:48.6]} 33... d3 {[%clk 0:00:22.1]} 34. Re1 {[%clk 0:00:47]} 34... d2
{[%clk 0:00:21.2]} 35. Rd1 {[%clk 0:00:47.1]} 35... Kf7 {[%clk 0:00:21.3]} 36.
Kf2 {[%clk 0:00:47.3]} 36... Kf6 {[%clk 0:00:21.8]} 37. Ke3 {[%clk 0:00:46.6]}
37... Kf5 {[%clk 0:00:22.4]} 38. h4 {[%clk 0:00:29.3]} 38... g6 {[%clk
0:00:20.2]} 39. h3 {[%clk 0:00:28.6]} 39... a5 {[%clk 0:00:19.6]} 40. h5 {[%clk
0:00:25.9]} 40... gxh5 {[%clk 0:00:19]} 41. Ke2 {[%clk 0:00:25.6]} 41... b4
{[%clk 0:00:17]} 42. axb4 {[%clk 0:00:24.5]} 42... axb4 {[%clk 0:00:17.9]} 43.
Ke3 {[%clk 0:00:20]} 43... b3 {[%clk 0:00:17.9]} 44. Ke2 {[%clk 0:00:20.2]}
44... b2 {[%clk 0:00:17.4]} 45. h4 {[%clk 0:00:13]} 45... Rd8 {[%clk 0:00:16.9]}
46. Rb1 {[%clk 0:00:09.9]} 46... d1=Q+ {[%clk 0:00:15.4]} 47. Rxd1 {[%clk
0:00:10.8]} 47... Rxd1 {[%clk 0:00:14.7]} 48. Kxd1 {[%clk 0:00:11.7]} 0-1

[Event "*** Titled Tuesday Blitz"]
[Site "Chess.com"]
[Date "2021.04.27"]
[Round "3"]
[White "DanielTitichoca"]
[Black "Steegersee"]
[Result "1-0"]
[WhiteElo "2399"]
[BlackElo "2213"]
[TimeControl "180+1"]
[EndTime "10:28:33 PDT"]
[Termination "DanielTitichoca won by checkmate"]

1. e4 {[%clk 0:03:00.9]} 1... e6 {[%clk 0:02:58.3]} 2. d4 {[%clk 0:02:59.1]}
2... d5 {[%clk 0:02:56]} 3. Nc3 {[%clk 0:03:00]} 3... Nf6 {[%clk 0:02:34.1]} 4.
e5 {[%clk 0:02:58.9]} 4... Nfd7 {[%clk 0:02:34.6]} 5. f4 {[%clk 0:02:59.8]} 5...
c5 {[%clk 0:02:33.3]} 6. Nf3 {[%clk 0:03:00.7]} 6... Nc6 {[%clk 0:02:32.1]} 7.
Be3 {[%clk 0:02:59.9]} 7... a6 {[%clk 0:02:19.1]} 8. Be2 {[%clk 0:02:59.2]} 8...
b5 {[%clk 0:01:40.5]} 9. Qd2 {[%clk 0:02:56.6]} 9... Qb6 {[%clk 0:01:36]} 10.
O-O {[%clk 0:02:50.7]} 10... cxd4 {[%clk 0:01:35.3]} 11. Nxd4 {[%clk 0:02:48.3]}
11... Bc5 {[%clk 0:01:30.4]} 12. Rad1 {[%clk 0:02:38.1]} 12... O-O {[%clk
0:01:24.5]} 13. Kh1 {[%clk 0:02:35]} 13... Bxd4 {[%clk 0:00:58.6]} 14. Bxd4
{[%clk 0:02:32.8]} 14... Nxd4 {[%clk 0:00:57.9]} 15. Qxd4 {[%clk 0:02:32.9]}
15... Bb7 {[%clk 0:00:57.8]} 16. Qxb6 {[%clk 0:02:19.3]} 16... Nxb6 {[%clk
0:00:58.7]} 17. Bd3 {[%clk 0:02:19.4]} 17... Rfd8 {[%clk 0:00:38.4]} 18. Ne2
{[%clk 0:02:18]} 18... Nc4 {[%clk 0:00:37.5]} 19. Bxc4 {[%clk 0:02:15.6]} 19...
dxc4 {[%clk 0:00:38.4]} 20. Kg1 {[%clk 0:02:11.4]} 20... Rac8 {[%clk 0:00:35.2]}
21. Nd4 {[%clk 0:02:06.8]} 21... c3 {[%clk 0:00:33]} 22. b3 {[%clk 0:02:01]}
22... Kf8 {[%clk 0:00:26.8]} 23. Rfe1 {[%clk 0:02:00.8]} 23... Ke7 {[%clk
0:00:21.8]} 24. Ne2 {[%clk 0:01:53]} 24... Rd2 {[%clk 0:00:17.4]} 25. Nxc3
{[%clk 0:01:51]} 25... Rxc2 {[%clk 0:00:17.2]} 26. Ne4 {[%clk 0:01:46.9]} 26...
Bxe4 {[%clk 0:00:14.8]} 27. Rxe4 {[%clk 0:01:46.3]} 27... Rxa2 {[%clk
0:00:15.4]} 28. Red4 {[%clk 0:01:46.8]} 28... Rc7 {[%clk 0:00:15.5]} 29. g4
{[%clk 0:01:45.6]} 29... Rb2 {[%clk 0:00:14.5]} 30. b4 {[%clk 0:01:43.7]} 30...
Ra2 {[%clk 0:00:13.3]} 31. h4 {[%clk 0:01:43]} 31... f6 {[%clk 0:00:12.8]} 32.
g5 {[%clk 0:01:28.9]} 32... fxe5 {[%clk 0:00:11.6]} 33. fxe5 {[%clk 0:01:28.5]}
33... Ra4 {[%clk 0:00:12.2]} 34. Rf1 {[%clk 0:01:07.9]} 34... a5 {[%clk
0:00:12]} 35. Rdf4 {[%clk 0:01:02.4]} 35... Rxb4 {[%clk 0:00:11]} 36. Rf7+
{[%clk 0:01:01.6]} 36... Kd8 {[%clk 0:00:11.3]} 37. Rf8+ {[%clk 0:00:55.5]}
37... Kd7 {[%clk 0:00:10.7]} 38. Rd1+ {[%clk 0:00:55.9]} 38... Kc6 {[%clk
0:00:10.4]} 39. Re8 {[%clk 0:00:55.3]} 39... a4 {[%clk 0:00:08.2]} 40. Rxe6+
{[%clk 0:00:55.7]} 40... Kb7 {[%clk 0:00:08.7]} 41. Rdd6 {[%clk 0:00:52.9]}
41... Rg4+ {[%clk 0:00:08.8]} 42. Kf2 {[%clk 0:00:52.2]} 42... b4 {[%clk
0:00:06.9]} 43. Rb6+ {[%clk 0:00:52.3]} 43... Kc8 {[%clk 0:00:07.1]} 44. Re8+
{[%clk 0:00:50.4]} 44... Kd7 {[%clk 0:00:06.6]} 45. Rg8 {[%clk 0:00:51.3]} 45...
Rc2+ {[%clk 0:00:05.9]} 46. Kf3 {[%clk 0:00:50.2]} 46... Rgc4 {[%clk 0:00:04]}
47. Rxg7+ {[%clk 0:00:50.7]} 47... Ke8 {[%clk 0:00:03.9]} 48. Rb8+ {[%clk
0:00:49.9]} 48... Rc8 {[%clk 0:00:04.4]} 49. Rg8+ {[%clk 0:00:47.6]} 49... Kd7
{[%clk 0:00:03.7]} 50. e6+ {[%clk 0:00:47]} 50... Kd6 {[%clk 0:00:03.2]} 51.
Rgxc8 {[%clk 0:00:47.1]} 51... Rxc8 {[%clk 0:00:04.1]} 52. Rxc8 {[%clk
0:00:47.8]} 52... a3 {[%clk 0:00:04.6]} 53. Rb8 {[%clk 0:00:44.2]} 53... Kxe6
{[%clk 0:00:05.2]} 54. Rxb4 {[%clk 0:00:44]} 54... a2 {[%clk 0:00:06.1]} 55. Ra4
{[%clk 0:00:43.8]} 55... Kf5 {[%clk 0:00:07]} 56. Rxa2 {[%clk 0:00:44.1]} 56...
Kg6 {[%clk 0:00:07.8]} 57. Ra6+ {[%clk 0:00:44.2]} 57... Kh5 {[%clk 0:00:08.7]}
58. Rh6# {[%clk 0:00:44.8]} 1-0

[Event "*** Titled Tuesday Blitz"]
[Site "Chess.com"]
[Date "2021.04.27"]
[Round "3"]
[White "volunteers1998"]
[Black "guillembaches"]
[Result "0-1"]
[WhiteElo "2208"]
[BlackElo "2511"]
[TimeControl "180+1"]
[EndTime "10:28:34 PDT"]
[Termination "guillembaches won on time"]

1. e4 {[%clk 0:03:00.9]} 1... c5 {[%clk 0:02:59.8]} 2. Nf3 {[%clk 0:02:58.9]}
2... d6 {[%clk 0:03:00.4]} 3. d4 {[%clk 0:02:56.6]} 3... cxd4 {[%clk 0:03:01]}
4. Nxd4 {[%clk 0:02:54.3]} 4... Nf6 {[%clk 0:03:01.4]} 5. Nc3 {[%clk 0:02:52.1]}
5... Nc6 {[%clk 0:03:01.9]} 6. Be3 {[%clk 0:02:42.8]} 6... Ng4 {[%clk
0:03:01.6]} 7. Bb5 {[%clk 0:02:30]} 7... Bd7 {[%clk 0:03:00.4]} 8. Qe2 {[%clk
0:02:19.8]} 8... Nxe3 {[%clk 0:02:52.7]} 9. Qxe3 {[%clk 0:02:17.4]} 9... e6
{[%clk 0:02:48.8]} 10. O-O {[%clk 0:02:15]} 10... Be7 {[%clk 0:02:45.7]} 11.
Rad1 {[%clk 0:02:08.8]} 11... O-O {[%clk 0:02:42.3]} 12. Kh1 {[%clk 0:02:03.3]}
12... Qb6 {[%clk 0:02:36]} 13. a4 {[%clk 0:01:56.8]} 13... Rad8 {[%clk
0:02:07.4]} 14. Nxc6 {[%clk 0:01:52.2]} 14... bxc6 {[%clk 0:02:04.4]} 15. Qxb6
{[%clk 0:01:50.5]} 15... axb6 {[%clk 0:02:05.3]} 16. Bd3 {[%clk 0:01:47.2]}
16... Bf6 {[%clk 0:01:59.6]} 17. f4 {[%clk 0:01:42.4]} 17... Bd4 {[%clk
0:01:47.8]} 18. Rf3 {[%clk 0:01:33.9]} 18... e5 {[%clk 0:01:39.9]} 19. f5 {[%clk
0:01:32.4]} 19... Ra8 {[%clk 0:01:28.6]} 20. Bc4 {[%clk 0:01:28.8]} 20... Rfd8
{[%clk 0:01:21.4]} 21. b3 {[%clk 0:01:24.7]} 21... Kf8 {[%clk 0:01:13.4]} 22.
Ne2 {[%clk 0:01:20.6]} 22... Bc5 {[%clk 0:01:08.6]} 23. Ng3 {[%clk 0:01:16.7]}
23... Be8 {[%clk 0:01:03.3]} 24. Nh5 {[%clk 0:01:09.7]} 24... f6 {[%clk
0:01:00.3]} 25. Ng3 {[%clk 0:01:07]} 25... Bf7 {[%clk 0:00:53.1]} 26. Bxf7
{[%clk 0:01:03.9]} 26... Kxf7 {[%clk 0:00:54]} 27. Rfd3 {[%clk 0:01:00.8]} 27...
Ke7 {[%clk 0:00:48.4]} 28. h4 {[%clk 0:00:57]} 28... Rd7 {[%clk 0:00:44.4]} 29.
Ne2 {[%clk 0:00:54.6]} 29... Rad8 {[%clk 0:00:43.8]} 30. c4 {[%clk 0:00:48.9]}
30... g6 {[%clk 0:00:40.2]} 31. g4 {[%clk 0:00:46.3]} 31... gxf5 {[%clk
0:00:37.9]} 32. gxf5 {[%clk 0:00:45.9]} 32... Rg8 {[%clk 0:00:37.7]} 33. Rg3
{[%clk 0:00:41.2]} 33... Rdd8 {[%clk 0:00:36.3]} 34. Kg2 {[%clk 0:00:37.6]}
34... Rxg3+ {[%clk 0:00:35.9]} 35. Kxg3 {[%clk 0:00:35.7]} 35... Rg8+ {[%clk
0:00:35.7]} 36. Kf3 {[%clk 0:00:34.4]} 36... h5 {[%clk 0:00:32.1]} 37. Rh1
{[%clk 0:00:32.4]} 37... Rg4 {[%clk 0:00:32]} 38. Rh3 {[%clk 0:00:26.7]} 38...
Bd4 {[%clk 0:00:27]} 39. Rg3 {[%clk 0:00:22.4]} 39... Rxh4 {[%clk 0:00:23.9]}
40. Rg7+ {[%clk 0:00:21.8]} 40... Ke8 {[%clk 0:00:23.9]} 41. Rb7 {[%clk
0:00:19.5]} 41... Rh3+ {[%clk 0:00:23.2]} 42. Kg2 {[%clk 0:00:18.7]} 42... Rxb3
{[%clk 0:00:22.7]} 43. Nxd4 {[%clk 0:00:17.9]} 43... exd4 {[%clk 0:00:22.8]} 44.
a5 {[%clk 0:00:15.6]} 44... d3 {[%clk 0:00:21.9]} 45. a6 {[%clk 0:00:15]} 45...
d2 {[%clk 0:00:22.1]} 46. a7 {[%clk 0:00:14.4]} 46... Ra3 {[%clk 0:00:22.4]} 47.
Rb8+ {[%clk 0:00:11.6]} 47... Kf7 {[%clk 0:00:22.7]} 48. Rb7+ {[%clk 0:00:08.7]}
48... Kg8 {[%clk 0:00:22.9]} 49. Rb8+ {[%clk 0:00:08]} 49... Kg7 {[%clk
0:00:22.8]} 50. Rb7+ {[%clk 0:00:05.7]} 50... Kh6 {[%clk 0:00:23.1]} 0-1